bitfinex/quotes_BTCUSD_20240828
["timestamp","ask_amount","ask_price","bid_price","bid_amount"]
[1724865374782,0.00695292,59117.0,59111.0,0.0012998]
[1724865374783,0.338325,59115.0,59111.0,0.0012998]
[1724865375007,0.16917,59112.0,59111.0,0.0012998]
[1724865375244,0.50751,59112.0,59111.0,0.0012998]
[1724865375913,0.84585,59112.0,59111.0,0.0012998]
[1724865376601,1.03817647,59112.0,59111.0,0.0012998]
[1724865376817,1.03817647,59112.0,59094.0,0.009009]
[1724865376818,0.174219,59095.0,59094.0,0.009009]
[1724865377031,0.169284,59072.0,59070.0,0.50540786]
[1724865377250,0.37147821,59090.0,59067.0,0.0636]
[1724865377474,0.133,59094.0,59071.0,0.08994694]
[1724865377475,0.37147821,59081.0,59071.0,0.08994694]
[1724865377722,0.1,59094.0,59075.0,0.1389]
[1724865377958,0.37147821,59087.0,59076.0,0.0033852]
[1724865378180,0.1,59094.0,59075.0,0.0636]
[1724865378181,0.846365,59076.0,59075.0,0.0636]
[1724865378392,0.846422,59072.0,59071.0,0.0004]
[1724865378864,0.607853,59072.0,59071.0,0.0004]
[1724865379288,0.169284,59072.0,59071.0,0.0004]
[1724865379298,0.507853,59072.0,59071.0,0.0004]
[1724865379727,1.29750021,59072.0,59071.0,0.0004]
[1724865379955,0.1,59079.0,59056.0,0.1416]
[1724865379956,0.50540786,59074.0,59056.0,0.1416]
[1724865380166,0.338635,59061.0,59056.0,0.1416]
[1724865380394,0.37147821,59072.0,59056.0,0.1416]
[1724865380395,0.169327,59057.0,59056.0,0.1416]
[1724865380826,0.33863,59062.0,59056.0,0.1416]
[1724865380827,0.338635,59061.0,59056.0,0.1416]
[1724865381077,0.84671,59052.0,59039.0,0.0776]
[1724865381297,1.55687221,59052.0,59039.0,0.0776]
[1724865381535,1.71004478,59052.0,59038.0,0.0659]
[1724865381961,1.71004478,59052.0,59049.0,0.0812]
[1724865381962,1.31818821,59052.0,59049.0,0.0812]
[1724865382230,0.97950421,59052.0,59049.0,0.0812]
[1724865382467,0.47147821,59052.0,59049.0,0.0812]
[1724865382692,0.37147821,59066.0,59052.0,0.0648]
[1724865382896,0.50540786,59057.0,59052.0,0.0648]
[1724865383128,0.16932,59060.0,59052.0,0.0648]
[1724865383383,0.37147821,59066.0,59052.0,0.0648]
[1724865383599,0.37147821,59066.0,59053.0,0.01309955]
[1724865383600,0.50540786,59061.0,59053.0,0.01309955]
[1724865383825,0.37147821,59074.0,59054.0,0.07998626]
[1724865384066,0.54075921,59074.0,59063.0,0.338621]
[1724865384290,0.50540786,59078.0,59061.0,0.0766]
[1724865384291,0.169304,59066.0,59061.0,0.0766]
[1724865384516,0.169306,59065.0,59061.0,0.0766]
[1724865384728,0.05317257,59073.0,59061.0,0.0766]
[1724865384964,0.169307,59064.0,59061.0,0.0766]
[1724865385173,0.169307,59064.0,59048.0,0.001]
[1724865385174,0.47418276,59072.0,59053.0,0.169338]
[1724865385400,0.169323,59059.0,59051.0,0.178741]
[1724865385639,0.169323,59059.0,59054.0,0.01356339]
[1724865385876,0.42420613,59072.0,59051.0,0.009398]
[1724865385877,0.169342,59052.0,59051.0,0.009398]
[1724865386154,0.508026,59052.0,59051.0,0.009398]
[1724865386371,1.185394,59052.0,59051.0,0.009398]
[1724865387337,2.53146813,59052.0,59051.0,0.009398]
[1724865387610,2.61762477,59052.0,59051.0,0.009398]
[1724865387819,1.185796,59032.0,59020.0,0.0773]
[1724865388257,0.169393,59035.0,59020.0,0.0773]
[1724865388467,0.338719,59046.0,59033.0,0.0613]
[1724865388715,0.1,59051.0,59033.0,0.0613]
[1724865388716,0.50540786,59041.0,59033.0,0.0613]
[1724865388965,0.169393,59034.0,59033.0,0.0613]
[1724865389197,0.169399,59032.0,59026.0,0.0777]
[1724865389422,0.846997,59032.0,59026.0,0.0777]
[1724865389651,0.508198,59032.0,59026.0,0.0777]
[1724865389897,0.33878,59036.0,59026.0,0.0777]
[1724865390122,0.169394,59034.0,59026.0,0.247115]
[1724865390358,0.1,59045.0,59031.0,0.01193893]
[1724865390612,0.169399,59032.0,59031.0,0.0074]
[1724865390843,0.338762,59039.0,59031.0,0.0004]
[1724865391071,0.01765151,59042.0,59031.0,0.0004]
[1724865391288,0.169389,59036.0,59031.0,0.0004]
[1724865391511,0.169395,59034.0,59031.0,0.0004]
[1724865391727,0.169387,59037.0,59031.0,0.0044]
[1724865391969,0.169393,59035.0,59031.0,0.0044]
[1724865392195,0.338763,59039.0,59031.0,0.0004]
[1724865392196,0.169394,59034.0,59031.0,0.0004]
[1724865392423,0.508198,59032.0,59031.0,0.0004]
[1724865392680,0.946997,59032.0,59031.0,0.0004]
[1724865392928,1.58161631,59032.0,59031.0,0.0004]
[1724865393415,1.444496,59032.0,59031.0,0.0004]
[1724865394130,1.444496,59032.0,59031.0,0.0024]
[1724865394363,1.444496,59032.0,59024.0,0.00012]
[1724865394364,1.185936,59025.0,59024.0,0.00012]
[1724865394625,1.68604213,59025.0,59024.0,0.00012]
[1724865394874,2.36900608,59025.0,59024.0,0.00012]
[1724865395088,2.36900608,59025.0,59001.0,0.249087]
[1724865395089,0.508371,59012.0,59001.0,0.0796]
[1724865395359,1.286199,59012.0,59001.0,0.0796]
[1724865395569,2.19400513,59012.0,59000.0,0.01]
[1724865395803,1.427399,59012.0,59000.0,0.01]
[1724865396016,0.1,59012.0,59007.0,0.081]
[1724865396543,0.608371,59012.0,59007.0,0.081]
[1724865396782,0.947285,59012.0,59007.0,0.081]
[1724865396998,1.286199,59012.0,59002.0,0.0632]
[1724865397243,0.947285,59012.0,59002.0,0.0632]
[1724865397679,1.0420135,59012.0,59002.0,0.0632]
[1724865397908,1.33877231,59012.0,59002.0,0.0632]
[1724865398167,1.34277231,59012.0,59002.0,0.0632]
[1724865398382,0.1,59012.0,59003.0,0.338961]
[1724865398605,0.56094431,59012.0,59002.0,0.0632]
[1724865398853,0.32303031,59012.0,59005.0,0.169476]
[1724865399077,0.66094431,59012.0,59002.0,0.0632]
[1724865399322,0.0609,59027.0,59011.0,0.10119707]
[1724865399551,0.004,59012.0,59011.0,0.258257]
[1724865399812,0.004,59012.0,59011.0,0.60957507]
[1724865400039,0.004,59012.0,59011.0,0.67327507]
[1724865400298,0.004,59012.0,59011.0,1.01219407]
[1724865400558,0.004,59012.0,59011.0,0.99389407]
[1724865401232,0.05257331,59024.0,59018.0,0.338876]
[1724865401493,0.50540786,59027.0,59023.0,0.169425]
[1724865401736,0.50540786,59026.0,59023.0,0.338848]
[1724865401949,0.50540786,59026.0,59019.0,0.01238881]
[1724865401950,0.508302,59020.0,59019.0,0.01238881]
[1724865402249,0.39144131,59020.0,59011.0,0.0667]
[1724865402479,0.39144131,59020.0,59001.0,0.231787]
[1724865402480,0.10340351,59020.0,59001.0,0.231787]
[1724865402719,0.05257331,59019.0,59001.0,0.0623]
[1724865402947,0.508362,59013.0,59012.0,0.01223112]
[1724865403178,0.169472,59007.0,59001.0,0.0623]
[1724865403435,0.169476,59006.0,59001.0,0.0623]
[1724865403679,0.169469,59008.0,59002.0,0.09024394]
[1724865403909,0.169472,59007.0,59002.0,0.25972894]
[1724865404191,0.15257331,59013.0,59002.0,0.09024394]
[1724865404404,0.338928,59010.0,59003.0,0.169482]
[1724865404665,0.001,59007.0,59002.0,0.09024394]
[1724865404924,0.1,59016.0,59009.0,0.169464]
[1724865405150,0.338847,59024.0,59006.0,0.078]
[1724865405377,0.338847,59024.0,59009.0,0.338928]
[1724865405605,0.47397231,59032.0,59007.0,0.01261857]
[1724865405606,0.067978,59031.0,59007.0,0.01261857]
[1724865405823,0.169429,59022.0,59017.0,0.169442]
[1724865406048,0.169429,59022.0,59018.0,0.1432]
[1724865406049,0.169436,59019.0,59018.0,0.1432]
[1724865406305,0.508309,59019.0,59018.0,0.01260446]
[1724865406525,0.338845,59024.0,59009.0,0.1392]
[1724865406755,0.169437,59019.0,59009.0,0.1392]
[1724865406973,0.05257331,59023.0,59009.0,0.1392]
[1724865407210,0.05257331,59023.0,59000.0,0.01]
[1724865407211,0.169467,59009.0,59003.0,0.0791]
[1724865407437,0.169459,59011.0,59010.0,0.01267672]
[1724865407659,0.338921,59011.0,59003.0,0.0791]
[1724865407876,0.169467,59009.0,59003.0,0.0791]
[1724865408118,0.16947,59008.0,59004.0,0.01268442]
[1724865408337,0.169471,59007.0,59004.0,0.01268442]
[1724865408551,0.169474,59006.0,59004.0,0.01268442]
[1724865408775,0.338899,59015.0,59004.0,0.01268442]
[1724865409029,0.338846,59024.0,59004.0,0.01268442]
[1724865409280,0.01765151,59025.0,59012.0,0.0791]
[1724865409504,0.01765151,59025.0,59017.0,0.338884]
[1724865409778,0.169434,59020.0,59016.0,0.169443]
[1724865410015,0.01765151,59025.0,59012.0,0.0791]
[1724865410016,0.01765151,59025.0,59018.0,0.01282882]
[1724865410230,0.169436,59019.0,59017.0,0.0128301]
[1724865410442,0.01765151,59025.0,59019.0,0.01266087]
[1724865410443,0.169434,59020.0,59019.0,0.01266087]
[1724865410659,0.169434,59020.0,59018.0,0.01266215]
[1724865410876,0.169434,59020.0,59012.0,0.0791]
[1724865410877,0.169439,59018.0,59017.0,0.002]
[1724865411097,0.05257331,59020.0,59019.0,0.01266087]
[1724865411317,0.00082,59019.0,59014.0,0.338899]
[1724865411532,0.00082,59019.0,59017.0,0.002]
[1724865411533,0.00182,59019.0,59017.0,0.002]
[1724865411750,0.170257,59019.0,59012.0,0.0791]
[1724865411969,0.00082,59019.0,59016.0,0.169444]
[1724865412230,0.001,59018.0,59017.0,0.003]
[1724865412465,0.509318,59018.0,59017.0,0.003]
[1724865412716,0.001,59018.0,59017.0,0.003]
[1724865412930,0.001,59018.0,59017.0,0.172442]
[1724865413168,0.001,59018.0,59017.0,0.511327]
[1724865413421,0.00082,59019.0,59018.0,0.923397]
[1724865413655,0.00082,59019.0,59018.0,1.262276]
[1724865413903,0.00182,59019.0,59018.0,1.262276]
[1724865414108,0.00082,59019.0,59018.0,1.262276]
[1724865414342,0.00082,59019.0,59018.0,1.261276]
[1724865415019,0.00182,59019.0,59018.0,1.274276]
[1724865415473,0.00182,59019.0,59018.0,0.935397]
[1724865416348,0.01765151,59034.0,59029.0,0.338815]
[1724865416582,0.50540786,59032.0,59031.0,0.169402]
[1724865416812,0.017652,59044.0,59032.0,0.169397]
[1724865417053,0.169378,59040.0,59034.0,0.338785]
[1724865417260,0.16938,59039.0,59035.0,0.16939]
[1724865417483,0.169383,59038.0,59033.0,0.169394]
[1724865417719,0.169386,59037.0,59033.0,0.169394]
[1724865417962,0.01765151,59042.0,59034.0,0.01568086]
[1724865418175,0.01765151,59042.0,59035.0,0.34216739]
[1724865418412,0.01765151,59042.0,59034.0,0.01229314]
[1724865418413,0.01765151,59042.0,59034.0,0.02129314]
[1724865418649,0.01765151,59042.0,59038.0,0.169381]
[1724865418650,0.18702251,59042.0,59038.0,0.169381]
[1724865418889,0.01765151,59042.0,59041.0,0.169373]
[1724865419103,0.01765151,59042.0,59041.0,0.338747]
[1724865419377,0.01765151,59042.0,59039.0,0.09291397]
[1724865419378,0.00711418,59056.0,59048.0,0.0803]
[1724865419608,0.0776,59069.0,59048.0,0.0803]
[1724865419609,0.01765151,59061.0,59048.0,0.0803]
[1724865419835,0.01765151,59061.0,59053.0,0.169338]
[1724865419836,0.169325,59058.0,59053.0,0.169338]
[1724865420056,0.169325,59058.0,59049.0,0.01259377]
[1724865420057,0.05257331,59060.0,59048.0,0.0803]
[1724865420287,0.05257331,59060.0,59054.0,0.01251198]
[1724865420509,0.05257331,59060.0,59053.0,0.338677]
[1724865420747,0.05257331,59060.0,59049.0,0.01251838]
[1724865420748,0.169348,59050.0,59049.0,0.01251838]
[1724865420969,0.0782,59056.0,59041.0,0.145]
[1724865421236,0.16937,59042.0,59041.0,0.145]
[1724865422164,0.338713,59048.0,59041.0,0.145]
[1724865422375,0.39126931,59050.0,59045.0,0.169361]
[1724865422376,0.169348,59050.0,59045.0,0.169361]
[1724865422861,0.169351,59049.0,59045.0,0.169361]
[1724865423335,0.338677,59054.0,59041.0,0.145]
[1724865423591,0.001,59074.0,59041.0,0.145]
[1724865423592,0.338592,59068.0,59048.0,0.0782]
[1724865423837,0.169339,59054.0,59048.0,0.0782]
[1724865424089,0.508051,59049.0,59048.0,0.0782]
[1724865424297,0.846852,59042.0,59041.0,0.0647]
[1724865424779,0.846852,59042.0,59041.0,0.0767]
[1724865425226,0.338729,59045.0,59041.0,0.0647]
[1724865425231,0.16937,59043.0,59041.0,0.0647]
[1724865425435,0.16937,59042.0,59041.0,0.0647]
[1724865425639,0.508111,59042.0,59041.0,0.0647]
[1724865425886,0.338741,59042.0,59041.0,0.014]
[1724865426139,0.846852,59042.0,59041.0,0.014]
[1724865426377,0.846852,59042.0,59032.0,0.17278557]
[1724865426378,0.169387,59037.0,59032.0,0.17278557]
[1724865426628,0.169376,59041.0,59033.0,0.338792]
[1724865426845,0.338726,59045.0,59033.0,0.35129308]
[1724865427078,0.169393,59034.0,59033.0,0.01250508]
[1724865427308,0.846967,59034.0,59033.0,0.01250508]
[1724865427543,0.846967,59034.0,59031.0,0.1437]
[1724865427544,0.169399,59032.0,59031.0,0.1437]
[1724865427758,0.04923997,59045.0,59031.0,0.1437]
[1724865427759,0.169389,59036.0,59031.0,0.313101]
[1724865427987,0.338766,59038.0,59032.0,0.169397]
[1724865428212,0.169399,59032.0,59031.0,0.1437]
[1724865428453,0.508198,59032.0,59031.0,0.1437]
[1724865428671,0.0661,59041.0,59021.0,0.1385]
[1724865428907,0.169401,59032.0,59026.0,0.338832]
[1724865429106,0.169403,59031.0,59027.0,0.169413]
[1724865429333,0.169403,59031.0,59021.0,0.1385]
[1724865429334,0.00709272,59041.0,59028.0,0.00338796]
[1724865429568,0.84417186,59039.0,59031.0,0.013]
[1724865429814,0.0758,59047.0,59032.0,0.0767]
[1724865430039,0.338793,59033.0,59022.0,0.0767]
[1724865430406,0.04923997,59032.0,59022.0,0.0767]
[1724865430615,0.04923997,59032.0,59004.0,0.04944308]
[1724865430616,0.847182,59019.0,59013.0,0.0662]
[1724865431108,0.0754,59021.0,59001.0,0.0811]
[1724865431338,0.169485,59002.0,59001.0,0.0811]
[1724865431563,0.169488,59001.0,59000.0,0.01]
[1724865431783,0.338977,59001.0,59000.0,0.01]
[1724865432016,0.169488,59001.0,59000.0,0.01]
[1724865432234,0.508465,59001.0,59000.0,0.01]
[1724865432474,0.847442,59001.0,59000.0,0.01]
[1724865432933,1.186419,59001.0,59000.0,0.01]
[1724865433144,0.847442,59001.0,59000.0,0.018]
[1724865433581,1.186419,59001.0,59000.0,0.018]
[1724865434279,1.18621507,59001.0,59000.0,0.01]
[1724865434489,1.28621507,59001.0,59000.0,0.01]
[1724865434756,1.28621507,59001.0,59000.0,0.019]
[1724865434973,1.28621507,59001.0,59000.0,0.01]
[1724865435450,1.28621507,59001.0,59000.0,0.011]
[1724865435673,1.28621507,59001.0,59000.0,0.010902]
[1724865435908,0.94723807,59001.0,59000.0,0.010902]
[1724865436152,0.60826107,59001.0,59000.0,0.010902]
[1724865436709,0.94723807,59001.0,59000.0,0.02157438]
[1724865436805,0.94723807,59001.0,59000.0,0.011902]
[1724865437029,0.60826107,59001.0,59000.0,0.011902]
[1724865437503,0.16928407,59001.0,59000.0,0.011902]
[1724865437723,0.50826107,59001.0,59000.0,0.011902]
[1724865437977,0.16928407,59001.0,59000.0,0.011902]
[1724865438448,0.16928407,59001.0,59000.0,0.02157438]
[1724865438914,0.1,59009.0,59000.0,0.19106438]
[1724865439135,0.1,59009.0,59001.0,0.169488]
[1724865439136,0.169475,59006.0,59001.0,0.169488]
[1724865439365,0.169477,59005.0,59000.0,0.19106438]
[1724865439593,0.169485,59002.0,59001.0,0.0106814]
[1724865439811,0.508456,59002.0,59000.0,0.010902]
[1724865440038,0.169488,59001.0,59000.0,0.010902]
[1724865440804,0.508465,59001.0,59000.0,0.010902]
[1724865441516,0.438933,59009.0,59001.0,0.169487]
[1724865441756,0.338946,59007.0,59000.0,0.180392]
[1724865441984,0.269476,59006.0,59000.0,0.187391]
[1724865442219,0.169478,59005.0,59000.0,0.187391]
[1724865442465,0.338949,59006.0,59000.0,0.180391]
[1724865442700,0.16948,59004.0,59000.0,0.188391]
[1724865442917,0.169485,59002.0,59000.0,0.010902]
[1724865443370,0.169488,59001.0,59000.0,0.015902]
[1724865443810,0.438915,59012.0,59000.0,0.015902]
[1724865444031,0.50540786,59010.0,59001.0,0.169487]
[1724865444242,0.50540786,59010.0,59000.0,0.015902]
[1724865444243,0.169474,59006.0,59000.0,0.354883]
[1724865444459,0.33895,59006.0,59000.0,0.185392]
[1724865444685,0.169476,59006.0,59001.0,0.169488]
[1724865444897,0.169476,59006.0,59000.0,0.010902]
[1724865444898,0.169485,59003.0,59000.0,0.017902]
[1724865445119,0.1,59012.0,59000.0,0.010902]
[1724865445335,0.169472,59007.0,59003.0,0.169481]
[1724865445587,0.169438,59019.0,59012.0,0.169455]
[1724865445791,0.076,59029.0,59018.0,0.338878]
[1724865446009,0.01765151,59028.0,59012.0,0.0781]
[1724865446285,0.0769,59023.0,59012.0,0.0781]
[1724865446533,0.338832,59027.0,59013.0,0.338907]
[1724865446749,0.04923997,59023.0,59012.0,0.0781]
[1724865446993,0.169451,59014.0,59013.0,0.01221491]
[1724865447229,0.169447,59016.0,59012.0,0.0781]
[1724865447446,0.169447,59016.0,59013.0,0.01210026]
[1724865447681,0.0769,59029.0,59013.0,0.01210026]
[1724865447912,0.338885,59017.0,59012.0,0.0781]
[1724865448176,0.169449,59015.0,59014.0,0.01209766]
[1724865448415,0.508353,59014.0,59013.0,0.01209025]
[1724865448623,0.169451,59014.0,59013.0,0.006]
[1724865448845,0.169451,59014.0,59013.0,0.01209025]
[1724865449056,0.169451,59014.0,59009.0,0.169464]
[1724865449504,0.338899,59015.0,59008.0,0.0626]
[1724865449713,0.170272,59014.0,59012.0,0.006]
[1724865449940,0.00082,59014.0,59012.0,0.006]
[1724865450473,0.508362,59013.0,59012.0,0.006]
[1724865450712,0.89650997,59013.0,59012.0,0.006]
[1724865450956,1.23541797,59013.0,59012.0,0.006]
[1724865451174,0.169472,59007.0,59001.0,0.338975]
[1724865451399,1.263119,59001.0,59000.0,0.010902]
[1724865451643,0.0767,58991.0,58971.0,0.007394]
[1724865451877,0.169572,58972.0,58971.0,0.007394]
[1724865452365,0.508716,58972.0,58971.0,0.007394]
[1724865452595,0.37302541,58977.0,58971.0,0.007394]
[1724865452596,0.169568,58974.0,58971.0,0.007394]
[1724865452824,0.37302541,58977.0,58971.0,0.007394]
[1724865453055,0.169572,58972.0,58971.0,0.007394]
[1724865453533,0.1,58982.0,58971.0,0.007394]
[1724865453778,0.339121,58976.0,58971.0,0.007394]
[1724865454020,0.169572,58972.0,58971.0,0.007394]
[1724865454247,0.16931506,58972.0,58971.0,0.007394]
[1724865454723,0.16931506,58972.0,58971.0,0.011394]
[1724865454948,0.16931506,58972.0,58971.0,0.007394]
[1724865455170,0.16931506,58972.0,58971.0,0.017394]
[1724865455382,0.50845906,58972.0,58971.0,0.02738728]
[1724865455615,0.16931506,58972.0,58971.0,0.017394]
[1724865456123,0.50845906,58972.0,58971.0,0.017394]
[1724865456330,0.84760306,58972.0,58971.0,0.017394]
[1724865457663,0.16931506,58972.0,58971.0,0.017394]
[1724865458127,0.84760306,58972.0,58971.0,0.02777113]
[1724865458329,0.84760306,58972.0,58971.0,0.017394]
[1724865458536,0.84760306,58972.0,58971.0,0.007394]
[1724865458766,0.16931506,58972.0,58971.0,0.007394]
[1724865458984,0.33913,58975.0,58971.0,0.02815876]
[1724865459223,0.339133,58974.0,58971.0,0.02815876]
[1724865459467,0.508716,58972.0,58971.0,0.01815876]
[1724865460198,0.169572,58972.0,58971.0,0.007394]
[1724865460416,0.169568,58974.0,58971.0,0.01816083]
[1724865460652,0.339082,58983.0,58971.0,0.01816083]
[1724865461131,0.169566,58975.0,58971.0,0.01076683]
[1724865461355,0.339105,58979.0,58971.0,0.01776683]
[1724865461594,0.169565,58975.0,58971.0,0.1774761]
[1724865461856,0.001,58987.0,58972.0,0.01076319]
[1724865462093,0.169569,58973.0,58972.0,0.01076319]
[1724865462321,0.508707,58973.0,58972.0,0.01076319]
[1724865462562,0.508707,58973.0,58971.0,0.0009031]
[1724865462797,0.169568,58974.0,58971.0,0.0039031]
[1724865463038,0.169563,58975.0,58972.0,0.01076319]
[1724865463263,0.339121,58976.0,58971.0,0.0009031]
[1724865463501,0.169558,58977.0,58974.0,0.0601]
[1724865463738,0.04995,58980.0,58974.0,0.0601]
[1724865463975,0.04995,58980.0,58977.0,0.00025676]
[1724865464199,0.219499,58980.0,58977.0,0.00025676]
[1724865464437,0.04995,58980.0,58978.0,0.01073354]
[1724865465120,0.339103,58979.0,58978.0,0.01073354]
[1724865465348,0.169551,58979.0,58978.0,0.01073354]
[1724865465822,0.219499,58980.0,58978.0,0.01073354]
[1724865466050,0.56544624,58980.0,58979.0,0.00025675]
[1724865467256,0.90454324,58980.0,58979.0,0.01092787]
[1724865467496,1.24364024,58980.0,58979.0,0.00025675]
[1724865467952,0.169562,58976.0,58974.0,0.0601]
[1724865468181,0.508689,58975.0,58974.0,0.0601]
[1724865469101,0.508689,58975.0,58974.0,0.0721]
[1724865469325,0.508689,58975.0,58974.0,0.08269916]
[1724865469573,0.847815,58975.0,58974.0,0.07069916]
[1724865469795,0.847815,58975.0,58974.0,0.0601]
[1724865470021,0.169563,58975.0,58974.0,0.07070217]
[1724865470247,0.508689,58975.0,58974.0,0.07070217]
[1724865470478,0.169563,58975.0,58974.0,0.07070217]
[1724865470700,0.169563,58975.0,58974.0,0.0601]
[1724865470969,0.169563,58975.0,58974.0,0.08171084]
[1724865471455,0.169563,58975.0,58974.0,0.0711]
[1724865471693,0.05680024,58980.0,58974.0,0.08171084]
[1724865471918,0.04995,58980.0,58977.0,0.169556]
[1724865472170,0.04995,58980.0,58979.0,0.589154]
[1724865472399,0.07653412,58980.0,58979.0,0.310351]
[1724865472634,0.07653412,58980.0,58979.0,0.66006379]
[1724865472870,0.04995,58980.0,58979.0,0.66006379]
[1724865473107,0.04995,58980.0,58979.0,0.99916679]
[1724865473338,0.04995,58980.0,58979.0,0.66006379]
[1724865473576,0.050771,58980.0,58979.0,0.99916679]
[1724865473807,0.050771,58980.0,58979.0,0.66006379]
[1724865474281,0.050771,58980.0,58979.0,0.32096079]
[1724865474511,0.050771,58980.0,58979.0,0.15140979]
[1724865475196,0.050771,58980.0,58979.0,0.32096079]
[1724865475499,0.050771,58980.0,58979.0,0.33496079]
[1724865475947,0.050771,58980.0,58979.0,1.01655733]
[1724865476170,0.07735467,58980.0,58979.0,1.01316679]
[1724865476659,0.01075467,58980.0,58979.0,1.39026979]
[1724865476890,0.06352,59014.0,58999.0,0.1476]
[1724865476891,0.338958,59005.0,58999.0,0.1476]
[1724865477128,0.06352,59014.0,58999.0,0.317093]
[1724865477129,0.02657916,59007.0,58999.0,0.317093]
[1724865477399,0.02657916,59007.0,59000.0,0.01397216]
[1724865477622,0.169488,59001.0,59000.0,0.01058284]
[1724865477868,0.169488,59001.0,58979.0,0.75620027]
[1724865477869,0.338946,59007.0,58979.0,0.38317486]
[1724865478101,0.169523,58989.0,58988.0,0.1419]
[1724865478329,0.169523,58989.0,58988.0,0.077]
[1724865478330,0.508569,58989.0,58988.0,0.077]
[1724865478563,0.508569,58989.0,58988.0,0.08759824]
[1724865478793,0.0614,58998.0,58983.0,0.0649]
[1724865478794,0.0614,58998.0,58983.0,0.1446]
[1724865479017,0.5351507,58989.0,58988.0,0.01059824]
[1724865479254,0.169529,58987.0,58983.0,0.1446]
[1724865479490,0.36562788,58989.0,58988.0,0.02459824]
[1724865479708,0.36562788,58989.0,58988.0,0.014]
[1724865479709,0.53515088,58989.0,58988.0,0.014]
[1724865479942,0.169529,58987.0,58983.0,0.1446]
[1724865480195,0.169537,58984.0,58983.0,0.1446]
[1724865480436,0.02658188,58989.0,58983.0,0.0797]
[1724865480868,0.02658188,58989.0,58984.0,0.169535]
[1724865481103,0.19610688,58989.0,58985.0,0.169534]
[1724865481325,0.339055,58988.0,58983.0,0.0797]
[1724865481556,0.169531,58987.0,58983.0,0.0797]
[1724865481831,0.169526,58988.0,58984.0,0.169536]
[1724865482049,0.02658235,58997.0,58983.0,0.0887]
[1724865482271,0.02658235,58997.0,58994.0,0.169507]
[1724865482560,0.02658235,58997.0,58996.0,0.508509]
[1724865482789,0.02658235,58997.0,58995.0,0.0615]
[1724865482790,0.169484,59003.0,58995.0,0.0615]
[1724865483030,0.0265781,59004.0,59003.0,0.508447]
[1724865483272,0.169491,59000.0,58995.0,0.0615]
[1724865483496,0.169491,59000.0,58995.0,0.231003]
[1724865483497,0.169492,59000.0,58995.0,0.231003]
[1724865483722,0.338967,59003.0,58997.0,0.169498]
[1724865483941,0.169489,59001.0,58997.0,0.169498]
[1724865484394,0.169492,59000.0,58995.0,0.231004]
[1724865484628,0.169488,59002.0,58996.0,0.339003]
[1724865484869,0.169491,59001.0,58995.0,0.0615]
[1724865485157,0.169491,59001.0,58997.0,0.169499]
[1724865485402,0.169498,58998.0,58997.0,0.012]
[1724865485636,0.00715732,59003.0,58995.0,0.0615]
[1724865485637,0.338993,58999.0,58995.0,0.0615]
[1724865485874,0.338985,59000.0,58995.0,0.0615]
[1724865486104,0.338985,59000.0,58996.0,0.012]
[1724865486105,0.5085,58997.0,58996.0,0.012]
[1724865486360,0.339041,58990.0,58985.0,0.0795]
[1724865486600,0.169528,58988.0,58985.0,0.0795]
[1724865486813,0.169529,58987.0,58986.0,0.01026812]
[1724865487060,0.169527,58988.0,58986.0,0.01026812]
[1724865487532,0.339029,58992.0,58986.0,0.01026812]
[1724865487533,0.026582,58987.0,58986.0,0.01026812]
[1724865487771,0.026582,58987.0,58986.0,0.17979912]
[1724865487993,0.026582,58987.0,58986.0,0.86131529]
[1724865488238,0.026582,58987.0,58986.0,0.85792512]
[1724865488456,0.026582,58987.0,58986.0,0.86892512]
[1724865488674,0.026582,58987.0,58986.0,1.19698812]
[1724865488923,0.026582,58987.0,58986.0,1.27728812]
[1724865489173,0.026582,58987.0,58986.0,1.2914922]
[1724865489389,0.026582,58987.0,58986.0,1.2774922]
[1724865489615,0.026582,58987.0,58986.0,1.2914922]
[1724865489832,0.026582,58987.0,58986.0,1.6305552]
[1724865490047,0.026582,58987.0,58986.0,1.6970552]
[1724865490965,0.026582,58987.0,58986.0,1.6830552]
[1724865491195,0.026582,58987.0,58986.0,1.3579922]
[1724865491666,0.026582,58987.0,58986.0,0.1712722]
[1724865491907,0.026582,58987.0,58986.0,0.1940032]
[1724865492155,0.339046,58989.0,58986.0,0.0244722]
[1724865492401,0.56098482,58987.0,58986.0,0.0244722]
[1724865492625,0.56098482,58987.0,58986.0,0.01420408]
[1724865492626,1.263799,58987.0,58986.0,0.01420408]
[1724865492897,1.326399,58987.0,58986.0,0.01420408]
[1724865494050,1.326399,58987.0,58986.0,0.00020408]
[1724865494987,1.37879882,58987.0,58986.0,0.00020408]
[1724865495465,1.40538543,58987.0,58986.0,0.00020408]
[1724865495700,1.36001773,58987.0,58986.0,0.00020408]
[1724865496872,1.33343112,58987.0,58986.0,0.00020408]
[1724865497333,1.33543112,58987.0,58986.0,0.00020408]
[1724865497587,0.99637412,58987.0,58986.0,0.00020408]
[1724865497835,0.169528,58987.0,58986.0,0.00020408]
[1724865500162,1.31851682,58987.0,58986.0,0.00020408]
[1724865500427,1.266117,58987.0,58986.0,0.00020408]
[1724865500665,0.508638,58981.0,58980.0,0.0008998]
[1724865501109,0.84773,58981.0,58980.0,0.0008998]
[1724865501595,0.508638,58981.0,58980.0,0.0008998]
[1724865501821,0.169546,58981.0,58980.0,0.0008998]
[1724865502049,0.169535,58985.0,58981.0,0.169544]
[1724865502554,0.50862,58983.0,58982.0,0.01040507]
[1724865502795,0.339064,58986.0,58982.0,0.01040507]
[1724865503045,0.16954,58983.0,58980.0,0.2531478]
[1724865503280,0.339064,58986.0,58982.0,0.01051891]
[1724865503512,0.169535,58985.0,58981.0,0.18006619]
[1724865503734,0.000818,58987.0,58983.0,0.34959763]
[1724865503967,0.000818,58987.0,58984.0,0.00339034]
[1724865504236,0.000818,58987.0,58986.0,0.508594]